{"text_format":"3","workbook":"xlsx","n_sheets":1,"sheets":["Предмет"],"not_rendered":{"external_links":1,"defined_names":8},"read":"whole","date_system":"1900"}

{"sheet":"Предмет","index":0,"n_rows":37,"n_cols":16,"rows_kept":37}
["№",null,"Фамилия",null,null,"Пол",null,"Участник с ОВЗ","Класс","Класс участия","Балл","Макс. Балл","Статус","Призер МЭ прошлого года","Учитель","Место работы учителя"]
[1,null,3,null,null,6,null,8,9,10,11,12,13,14,15,16]
[1,null,"Гимадиев",null,null,"м",null,0,"4 Б",4,30,56,"призер","да","Рогощенко Елена Витальевна","МБОУ \"Многопрофильная школа 181"]
[2,null,"Музафаров",null,null,"м",null,0,"4Б",4,16,56,"участник","нет","Рогощенко Елена Витальевна","МБОУ \"Многопрофильная школа 181"]
[3,null,"Сересев",null,null,"м",null,0,"4Б",4,16,56,"участник","нет","Рогощенко Елена Витальевна","МБОУ \"Многопрофильная школа 181"]
[4,null,"Озерин",null,null,"м",null,0,"4Б",4,14,56,"участник","нет","Рогощенко Елена Витальевна","МБОУ \"Многопрофильная школа 181"]
[5,null,"Мачихин",null,null,"м",null,0,"4Б",4,10,56,"участник","нет","Рогощенко Елена Витальевна","МБОУ \"Многопрофильная школа 181"]
[6,null,"Карякин",null,null,"м",null,0,"4Б",4,0,56,"участник","нет","Рогощенко Елена Витальевна","МБОУ \"Многопрофильная школа 181"]
[7,null,"Исламова",null,null,"ж",null,0,"4Б",4,0,56,"участник","нет","Рогощенко Елена Витальевна","МБОУ \"Многопрофильная школа 181"]
[8,null,"Ахметова  ",null,null,"ж",null,0,"4г",4,0,56,"участник","нет","Гиниятуллина А.А.","МБОУ \"Многопрофильная школа 181"]
[9,null,"Болгарова",null,null,"ж",null,0,"4г",4,3,56,"участник","нет","Гиниятуллина А.А.","МБОУ \"Многопрофильная школа 181"]
[10,null,"Гайфуллин",null,null,"м",null,0,"4г",4,14,56,"участник","нет","Гиниятуллина А.А.","МБОУ \"Многопрофильная школа 181"]
[11,null,"Мануров",null,null,"м",null,0,"4г",4,35,56,"призер","нет","Гиниятуллина А.А.","МБОУ \"Многопрофильная школа 181"]
[12,null,"Шевчук ",null,null,"м",null,0,"4г",4,30,56,"призер","нет","Гиниятуллина А.А.","МБОУ \"Многопрофильная школа 181"]
[13,null,{"$f":"[1]Предмет!C3","v":"Гарева"},null,null,{"$f":"[1]Предмет!F3","v":"ж"},null,{"$f":"[1]Предмет!H3","v":0},"4а",{"$f":"[1]Предмет!J3","v":4},{"$f":"[1]Предмет!K3","v":0},{"$f":"[1]Предмет!L3","v":56},{"$f":"[1]Предмет!M3","v":"участник"},{"$f":"[1]Предмет!N3","v":"нет"},"Батыршина Миляуша Рубисовна",{"$f":"[1]Предмет!P3","v":"МБОУ \"Многопрофильная школа№181\""}]
[14,null,{"$f":"[1]Предмет!C4","v":"Касымов"},null,null,{"$f":"[1]Предмет!F4","v":"м"},null,{"$f":"[1]Предмет!H4","v":0},"4а",{"$f":"[1]Предмет!J4","v":4},{"$f":"[1]Предмет!K4","v":7},{"$f":"[1]Предмет!L4","v":56},{"$f":"[1]Предмет!M4","v":"участник"},{"$f":"[1]Предмет!N4","v":"нет"},"Батыршина Миляуша Рубисовна",{"$f":"[1]Предмет!P4","v":"МБОУ \"Многопрофильная школа№181\""}]
[15,null,{"$f":"[1]Предмет!C5","v":"Клементьева"},null,null,{"$f":"[1]Предмет!F5","v":"ж"},null,{"$f":"[1]Предмет!H5","v":0},"4а",{"$f":"[1]Предмет!J5","v":4},{"$f":"[1]Предмет!K5","v":0},{"$f":"[1]Предмет!L5","v":56},{"$f":"[1]Предмет!M5","v":"участник"},{"$f":"[1]Предмет!N5","v":"нет"},"Батыршина Миляуша Рубисовна",{"$f":"[1]Предмет!P5","v":"МБОУ \"Многопрофильная школа№181\""}]
[16,null,{"$f":"[1]Предмет!C6","v":"Саттаров"},null,null,{"$f":"[1]Предмет!F6","v":"м"},null,{"$f":"[1]Предмет!H6","v":0},"4а",{"$f":"[1]Предмет!J6","v":4},{"$f":"[1]Предмет!K6","v":7},{"$f":"[1]Предмет!L6","v":56},{"$f":"[1]Предмет!M6","v":"участник"},{"$f":"[1]Предмет!N6","v":"нет"},"Батыршина Миляуша Рубисовна",{"$f":"[1]Предмет!P6","v":"МБОУ \"Многопрофильная школа№181\""}]
[17,null,{"$f":"[1]Предмет!C7","v":"Фасхутдинова"},null,null,{"$f":"[1]Предмет!F7","v":"ж"},null,{"$f":"[1]Предмет!H7","v":0},"4а",{"$f":"[1]Предмет!J7","v":4},{"$f":"[1]Предмет!K7","v":5},{"$f":"[1]Предмет!L7","v":56},{"$f":"[1]Предмет!M7","v":"участник"},{"$f":"[1]Предмет!N7","v":"нет"},"Батыршина Миляуша Рубисовна",{"$f":"[1]Предмет!P7","v":"МБОУ \"Многопрофильная школа№181\""}]
[18,null,"Хаммадеев ",null,null,"м",null,0,"4з",4,4,56,"участник","нет","Назмиева Диляра Ильдаровна","МБОУ \"Многопрофильная школа 181"]
[19,null,"Лебедев",null,null,"м",null,0,"4з",4,23,56,"призер","нет","Назмиева Диляра Ильдаровна","МБОУ \"Многопрофильная школа 181"]
[20,null,"Биктагирова ",null,null,"м",null,0,"4з",4,0,56,"участник","нет","Назмиева Диляра Ильдаровна","МБОУ \"Многопрофильная школа 181"]
[21,null,"Калязин",null,null,"м",null,0,"4е",4,14,56,"участник","нет","Золотницкая Алсу Ринатовна","МБОУ \"Многопрофильная школа №181\""]
[22,null,"Шамагсумов",null,null,"м",null,0,"4е",4,0,56,"участник","нет","Золотницкая Алсу Ринатовна","МБОУ \"Многопрофильная школа №181\""]
[23,null,"Абдулхаев",null,null,"м",null,0,"4е",4,0,56,"участник","нет","Золотницкая Алсу Ринатовна","МБОУ \"Многопрофильная школа №181\""]
[24,null,"Бахарев",null,null,"м",null,0,"4е",4,0,56,"участник","нет","Золотницкая Алсу Ринатовна","МБОУ \"Многопрофильная школа №181\""]
[25,null,"Гимазтдинов",null,null,"м",null,0,"4е",4,14,56,"участник","нет","Золотницкая Алсу Ринатовна","МБОУ \"Многопрофильная школа №181\""]
[26,null,"Мухаметзянова ",null,null,"ж",null,0,"4е",4,10,56,"участник","нет","Золотницкая Алсу Ринатовна","МБОУ \"Многопрофильная школа №181\""]
[27,null,"Мухаметзянова",null,null,"ж",null,0,"3в",3,7,56,"участник","нет","Горюнова Лариса Анатольевна","МБОУ \"Многопрофильная школа №181\"\""]
[28,null,"Терентьева ",null,null,"ж",null,0,"3в",3,7,56,"участник","нет","Горюнова Лариса Анатольевна"," МБОУ \"Многопрофильная школа №181\"\""]
[29,null,"Фаткулисламов",null,null,"М",null,0,"4 и ",4,33,56,"призер","нет","Воронина Юлия Александровна"," МБОУ \"Многопрофильная школа №181\"\""]
[30,null,"Артамонов ",null,null,"м",null,0,"4и",4,5,56,"участник","нет","Воронина Юлия Александровна","МБОУ \"Многопрофильная школа №181\"\""]
[31,null,"Иванов",null,null,"м",null,0,"4в",4,14,56,"участник","нет","Габдрахманова Эльмира Ринатовна","МБОУ \"Многопрофильная школа №181\"\""]
[32,null,"Гильманова",null,null,"ж",null,0,"4в",4,14,56,"участник","нет","Габдрахманова Эльмира Ринатовна","МБОУ \"Многопрофильная школа №181\"\""]
[33,null,"Сунгатуллин",null,null,"м",null,0,"4в",4,14,56,"участник","нет","Габдрахманова Эльмира Ринатовна","МБОУ \"Многопрофильная школа №181\"\""]
[34,null,"Мухаметшин ",null,null,"м",null,0,"4в",4,21,56,"участник","нет","Габдрахманова Эльмира Ринатовна","МБОУ \"Многопрофильная школа №181\"\""]
[35,null,"Ахмадуллин",null,null,"м",null,0,"4в",4,23,56,"призер","нет","Габдрахманова Эльмира Ринатовна","МБОУ \"Многопрофильная школа №181\"\""]